[Event "*** Titled Tuesday Blitz"]
[Site "Chess.com"]
[Date "2018.12.04"]
[Round "10"]
[White "Tjktiger"]
[Black "Hikaru"]
[Result "1-0"]
[WhiteElo "2725"]
[BlackElo "3011"]
[TimeControl "180+2"]
[EndTime "15:23:13 PST"]
[Termination "Tjktiger won by resignation"]

1. c4 {[%clk 0:03:01.9]} 1... g6 {[%clk 0:03:00.1]} 2. d4 {[%clk 0:03:01.7]}
2... Bg7 {[%clk 0:03:01.2]} 3. Nf3 {[%clk 0:03:02.6]} 3... f5 {[%clk 0:03:02.2]}
4. g3 {[%clk 0:03:03]} 4... d6 {[%clk 0:03:02.9]} 5. Bg2 {[%clk 0:03:04.4]} 5...
Nh6 {[%clk 0:03:04.5]} 6. O-O {[%clk 0:03:05.5]} 6... O-O {[%clk 0:03:06.1]} 7.
Nc3 {[%clk 0:03:06.5]} 7... Nc6 {[%clk 0:03:07.2]} 8. d5 {[%clk 0:03:03.4]} 8...
Ne5 {[%clk 0:03:08.3]} 9. Nxe5 {[%clk 0:03:04.3]} 9... dxe5 {[%clk 0:03:10.2]}
10. c5 {[%clk 0:03:00.6]} 10... e4 {[%clk 0:03:09.3]} 11. f3 {[%clk 0:02:59.4]}
11... exf3 {[%clk 0:03:10.1]} 12. exf3 {[%clk 0:02:59.4]} 12... e5 {[%clk
0:03:09.8]} 13. Re1 {[%clk 0:02:52.9]} 13... Nf7 {[%clk 0:03:08]} 14. f4 {[%clk
0:02:49.1]} 14... e4 {[%clk 0:03:08.9]} 15. Be3 {[%clk 0:02:50.1]} 15... b6
{[%clk 0:03:01.9]} 16. Rc1 {[%clk 0:02:49.3]} 16... Ba6 {[%clk 0:03:02.9]} 17.
Bf1 {[%clk 0:02:42.7]} 17... Bxf1 {[%clk 0:03:02.6]} 18. Rxf1 {[%clk 0:02:44.6]}
18... Qd7 {[%clk 0:02:56.9]} 19. Bd4 {[%clk 0:02:39.2]} 19... Nh6 {[%clk
0:02:56]} 20. c6 {[%clk 0:02:35.1]} 20... Qe7 {[%clk 0:02:54.3]} 21. Bxg7 {[%clk
0:02:26.9]} 21... Kxg7 {[%clk 0:02:53.9]} 22. Qd4+ {[%clk 0:02:14.1]} 22... Kg8
{[%clk 0:02:38.5]} 23. d6 {[%clk 0:02:07.9]} 23... Qxd6 {[%clk 0:02:39.6]} 24.
Qxd6 {[%clk 0:02:08.7]} 24... cxd6 {[%clk 0:02:41.5]} 25. Rfd1 {[%clk
0:02:06.4]} 25... Nf7 {[%clk 0:02:41]} 26. Nb5 {[%clk 0:02:03]} 26... Rfc8
{[%clk 0:01:50.7]} 27. c7 {[%clk 0:01:58.4]} 27... Kf8 {[%clk 0:01:46.5]} 28.
Nxd6 {[%clk 0:01:54.2]} 28... Nxd6 {[%clk 0:01:47]} 29. Rxd6 {[%clk 0:01:56.1]}
29... Ke7 {[%clk 0:01:48.9]} 30. Rdc6 {[%clk 0:01:52.5]} 30... Kd7 {[%clk
0:01:50.1]} 31. b4 {[%clk 0:01:38.3]} 31... Re8 {[%clk 0:01:43.4]} 32. b5 {[%clk
0:01:36.5]} 32... Rac8 {[%clk 0:01:42.4]} 33. Rd1+ {[%clk 0:01:34.2]} 33... Ke7
{[%clk 0:01:43.8]} 34. Rd4 {[%clk 0:01:25.1]} 34... Kf7 {[%clk 0:01:44.6]} 35.
Ra4 {[%clk 0:01:24.3]} 35... Re6 {[%clk 0:01:41]} 36. Rc1 {[%clk 0:01:02.3]}
36... Rd6 {[%clk 0:01:32.8]} 37. Rxa7 {[%clk 0:01:03.3]} 37... Ke7 {[%clk
0:01:33.6]} 38. a4 {[%clk 0:00:32.8]} 38... Kd7 {[%clk 0:01:34.8]} 39. Kf2
{[%clk 0:00:32.5]} 39... Rd2+ {[%clk 0:01:35.4]} 40. Ke3 {[%clk 0:00:33.7]}
40... Rd3+ {[%clk 0:01:35.9]} 41. Ke2 {[%clk 0:00:34.9]} 41... Ra3 {[%clk
0:01:37.4]} 42. Rd1+ {[%clk 0:00:35.4]} 42... Ke7 {[%clk 0:01:36.3]} 43. a5
{[%clk 0:00:34.7]} 43... bxa5 {[%clk 0:01:16.1]} 44. b6 {[%clk 0:00:35.7]} 44...
Rb3 {[%clk 0:01:17.8]} 45. b7 {[%clk 0:00:36.1]} 45... Rxc7 {[%clk 0:01:18.3]}
46. b8=Q {[%clk 0:00:37.2]} 46... Rxb8 {[%clk 0:01:20.2]} 47. Rxc7+ {[%clk
0:00:38.2]} 47... Ke6 {[%clk 0:01:22.1]} 48. Rc6+ {[%clk 0:00:38.8]} 48... Ke7
{[%clk 0:01:23]} 49. Ra6 {[%clk 0:00:37.3]} 49... Rb5 {[%clk 0:01:24]} 50. Rd2
{[%clk 0:00:38.7]} 50... h5 {[%clk 0:01:24.2]} 51. h4 {[%clk 0:00:38.3]} 51...
Rb3 {[%clk 0:01:24.6]} 52. Rxg6 {[%clk 0:00:34]} 52... a4 {[%clk 0:01:25.6]} 53.
Ra6 {[%clk 0:00:32.9]} 53... a3 {[%clk 0:01:26.1]} 54. Ra2 {[%clk 0:00:33]}
54... Rxg3 {[%clk 0:01:26.8]} 55. R2xa3 {[%clk 0:00:33.7]} 55... Rg2+ {[%clk
0:01:27.7]} 56. Ke3 {[%clk 0:00:35]} 1-0

[Event "*** Titled Tuesday Blitz"]
[Site "Chess.com"]
[Date "2018.12.04"]
[Round "10"]
[White "GhostOfGreenval"]
[Black "jefferyx"]
[Result "1/2-1/2"]
[WhiteElo "2852"]
[BlackElo "2784"]
[TimeControl "180+2"]
[EndTime "15:23:20 PST"]
[Termination "Game drawn by agreement"]

1. e4 {[%clk 0:03:01.9]} 1... c5 {[%clk 0:02:59.2]} 2. Nf3 {[%clk 0:03:02.9]}
2... d6 {[%clk 0:03:00.8]} 3. d4 {[%clk 0:03:03.4]} 3... Nf6 {[%clk 0:03:02.4]}
4. Nc3 {[%clk 0:03:03.2]} 4... cxd4 {[%clk 0:03:03.9]} 5. Nxd4 {[%clk
0:03:05.1]} 5... a6 {[%clk 0:03:05.5]} 6. Bg5 {[%clk 0:03:04.1]} 6... e6 {[%clk
0:03:06]} 7. f4 {[%clk 0:03:03.8]} 7... h6 {[%clk 0:03:07.6]} 8. Bh4 {[%clk
0:03:04.3]} 8... Qb6 {[%clk 0:03:09.1]} 9. Qd2 {[%clk 0:03:03.7]} 9... Qxb2
{[%clk 0:03:09.6]} 10. Rb1 {[%clk 0:03:04.1]} 10... Qa3 {[%clk 0:03:10.9]} 11.
e5 {[%clk 0:03:04.8]} 11... dxe5 {[%clk 0:03:08.1]} 12. fxe5 {[%clk 0:03:06.7]}
12... g5 {[%clk 0:03:09.4]} 13. exf6 {[%clk 0:02:50]} 13... gxh4 {[%clk
0:03:10.4]} 14. Be2 {[%clk 0:02:51]} 14... e5 {[%clk 0:02:26.6]} 15. Nf3 {[%clk
0:02:03.7]} 15... Nc6 {[%clk 0:02:27]} 16. O-O {[%clk 0:01:58.3]} 16... h3
{[%clk 0:02:28.1]} 17. g3 {[%clk 0:01:55.1]} 17... Be6 {[%clk 0:02:29.1]} 18.
Rxb7 {[%clk 0:01:30.3]} 18... Rd8 {[%clk 0:02:28.9]} 19. Bd3 {[%clk 0:01:11.1]}
19... Bb4 {[%clk 0:02:29.2]} 20. Nb1 {[%clk 0:01:11.5]} 20... Bxd2 {[%clk
0:02:14.1]} 21. Nxa3 {[%clk 0:01:12.1]} 21... Be3+ {[%clk 0:02:16]} 22. Kh1
{[%clk 0:01:12.5]} 22... Bd5 {[%clk 0:02:17.4]} 23. Bc4 {[%clk 0:01:06.5]} 23...
Be4 {[%clk 0:01:42.6]} 24. Bd3 {[%clk 0:00:52.8]} 24... Bd5 {[%clk 0:01:11.6]}
25. Bc4 {[%clk 0:00:52.7]} 25... Bxf3+ {[%clk 0:01:12.8]} 26. Rxf3 {[%clk
0:00:52.7]} 26... e4 {[%clk 0:01:14.7]} 27. Bxf7+ {[%clk 0:00:44.2]} 27... Kf8
{[%clk 0:01:16.3]} 28. Rf1 {[%clk 0:00:42.9]} 28... Na5 {[%clk 0:01:17.9]} 29.
Re7 {[%clk 0:00:38.1]} 29... Bc5 {[%clk 0:01:18.7]} 30. Re5 {[%clk 0:00:26.8]}
30... Bxa3 {[%clk 0:00:35.8]} 31. Rxa5 {[%clk 0:00:27]} 31... Kxf7 {[%clk
0:00:30.6]} 32. Rxa3 {[%clk 0:00:27.5]} 32... Rd2 {[%clk 0:00:24.9]} 33. g4
{[%clk 0:00:22]} 33... Rc8 {[%clk 0:00:10]} 34. Rxh3 {[%clk 0:00:19]} 34...
Rcxc2 {[%clk 0:00:11.9]} 35. Rxh6 {[%clk 0:00:19.5]} 35... e3 {[%clk 0:00:13.4]}
36. Re1 {[%clk 0:00:15]} 36... Rxa2 {[%clk 0:00:09.4]} 37. Kg1 {[%clk
0:00:09.9]} 37... Rg2+ {[%clk 0:00:10.2]} 38. Kh1 {[%clk 0:00:11.1]} 38... Rxg4
{[%clk 0:00:11.4]} 39. Rh3 {[%clk 0:00:09.3]} 39... e2 {[%clk 0:00:04.6]} 40.
Re3 {[%clk 0:00:10.3]} 1/2-1/2

[Event "*** Titled Tuesday Blitz"]
[Site "Chess.com"]
[Date "2018.12.04"]
[Round "10"]
[White "Jbd735"]
[Black "ChristopherYoo"]
[Result "0-1"]
[WhiteElo "2488"]
[BlackElo "2434"]
[TimeControl "180+2"]
[EndTime "15:23:24 PST"]
[Termination "ChristopherYoo won on time"]

1. e4 {[%clk 0:03:01.9]} 1... e5 {[%clk 0:03:00.2]} 2. Nf3 {[%clk 0:03:02.6]}
2... Nc6 {[%clk 0:03:00.9]} 3. Bb5 {[%clk 0:03:03.6]} 3... a6 {[%clk 0:03:01.5]}
4. Ba4 {[%clk 0:03:04.6]} 4... Nf6 {[%clk 0:03:02.8]} 5. O-O {[%clk 0:03:05.3]}
5... Be7 {[%clk 0:03:03.3]} 6. Re1 {[%clk 0:03:06.3]} 6... b5 {[%clk 0:03:04.6]}
7. Bb3 {[%clk 0:03:07.5]} 7... d6 {[%clk 0:03:06]} 8. c3 {[%clk 0:03:07.8]} 8...
O-O {[%clk 0:03:06.5]} 9. h3 {[%clk 0:03:08.3]} 9... Nb8 {[%clk 0:03:06.9]} 10.
d4 {[%clk 0:03:08.1]} 10... Nbd7 {[%clk 0:03:07.1]} 11. Nbd2 {[%clk 0:03:06.1]}
11... Bb7 {[%clk 0:03:08.1]} 12. Bc2 {[%clk 0:03:04.2]} 12... Re8 {[%clk
0:03:09.2]} 13. Nf1 {[%clk 0:03:03.9]} 13... Bf8 {[%clk 0:03:09.9]} 14. Ng3
{[%clk 0:03:03.5]} 14... g6 {[%clk 0:03:11]} 15. a4 {[%clk 0:03:02.2]} 15... Nb6
{[%clk 0:03:11.8]} 16. a5 {[%clk 0:02:42.7]} 16... Nbd7 {[%clk 0:03:11.6]} 17.
b3 {[%clk 0:02:12.2]} 17... Rc8 {[%clk 0:03:08.9]} 18. Bb2 {[%clk 0:02:11.6]}
18... Bh6 {[%clk 0:03:09]} 19. c4 {[%clk 0:02:09.1]} 19... bxc4 {[%clk
0:02:52.6]} 20. bxc4 {[%clk 0:02:09.9]} 20... exd4 {[%clk 0:02:50]} 21. Bxd4
{[%clk 0:02:06.5]} 21... Ne5 {[%clk 0:02:21.6]} 22. Rb1 {[%clk 0:01:58.3]} 22...
Bc6 {[%clk 0:02:20.2]} 23. Nxe5 {[%clk 0:01:32.8]} 23... dxe5 {[%clk 0:02:19.5]}
24. Bc3 {[%clk 0:01:33.3]} 24... Bf8 {[%clk 0:02:00.6]} 25. Qf3 {[%clk
0:01:31.9]} 25... Bc5 {[%clk 0:01:54]} 26. Red1 {[%clk 0:01:25.9]} 26... Qe7
{[%clk 0:01:51.7]} 27. Nf1 {[%clk 0:01:15.6]} 27... Bd4 {[%clk 0:01:12.9]} 28.
Bxd4 {[%clk 0:00:50.9]} 28... exd4 {[%clk 0:01:13.2]} 29. Rxd4 {[%clk
0:00:52.5]} 29... Nxe4 {[%clk 0:01:12.9]} 30. Ng3 {[%clk 0:00:16.1]} 30... Nd2
{[%clk 0:00:53.3]} 31. Qxc6 {[%clk 0:00:10.7]} 31... Nxb1 {[%clk 0:00:54.3]} 32.
Bxb1 {[%clk 0:00:12.1]} 32... Qe1+ {[%clk 0:00:54.9]} 33. Kh2 {[%clk 0:00:13.2]}
33... Qxb1 {[%clk 0:00:56]} 34. Ne4 {[%clk 0:00:09.7]} 34... Re6 {[%clk
0:00:45.1]} 35. Qd7 {[%clk 0:00:08.7]} 35... Rf8 {[%clk 0:00:45]} 36. Ng5 {[%clk
0:00:05]} 36... Rf6 {[%clk 0:00:32.6]} 37. Qxc7 {[%clk 0:00:05.4]} 37... Rxf2
{[%clk 0:00:27.4]} 38. Rd8 {[%clk 0:00:04.2]} 38... Qf5 {[%clk 0:00:15.1]} 39.
Rxf8+ {[%clk 0:00:02.5]} 39... Kxf8 {[%clk 0:00:17]} 40. Qd8+ {[%clk 0:00:02.6]}
40... Kg7 {[%clk 0:00:17.8]} 41. Qd4+ {[%clk 0:00:03.3]} 41... Qf6 {[%clk
0:00:08.7]} 0-1

[Event "*** Titled Tuesday Blitz"]
[Site "Chess.com"]
[Date "2018.12.04"]
[Round "10"]
[White "hypert"]
[Black "Korchmar_Vasiliy"]
[Result "0-1"]
[WhiteElo "2421"]
[BlackElo "2769"]
[TimeControl "180+2"]
[EndTime "15:23:29 PST"]
[Termination "Korchmar_Vasiliy won by checkmate"]

1. Nf3 {[%clk 0:03:01.9]} 1... g6 {[%clk 0:03:00.1]} 2. g3 {[%clk 0:03:01.1]}
2... Bg7 {[%clk 0:03:00.8]} 3. Bg2 {[%clk 0:03:02.9]} 3... c5 {[%clk 0:03:01.2]}
4. O-O {[%clk 0:03:04.1]} 4... Nc6 {[%clk 0:03:01.8]} 5. c4 {[%clk 0:02:56.2]}
5... e6 {[%clk 0:03:00.1]} 6. Nc3 {[%clk 0:02:52.9]} 6... d6 {[%clk 0:02:59.4]}
7. a3 {[%clk 0:02:54.2]} 7... Nge7 {[%clk 0:02:56.8]} 8. b4 {[%clk 0:02:50.3]}
8... b6 {[%clk 0:02:51.5]} 9. b5 {[%clk 0:02:44.6]} 9... Na5 {[%clk 0:02:52.6]}
10. Ne1 {[%clk 0:02:21.5]} 10... Bb7 {[%clk 0:02:52.6]} 11. Bxb7 {[%clk
0:02:21]} 11... Nxb7 {[%clk 0:02:54.5]} 12. Bb2 {[%clk 0:02:20.2]} 12... O-O
{[%clk 0:02:54.6]} 13. Qc2 {[%clk 0:02:15.7]} 13... d5 {[%clk 0:02:53.4]} 14. d3
{[%clk 0:02:14.8]} 14... Nd6 {[%clk 0:02:41.2]} 15. Nd1 {[%clk 0:02:12.6]} 15...
d4 {[%clk 0:02:42]} 16. a4 {[%clk 0:02:12.7]} 16... e5 {[%clk 0:02:39.1]} 17. e4
{[%clk 0:01:59.9]} 17... f5 {[%clk 0:02:32.3]} 18. f3 {[%clk 0:02:00.9]} 18...
Qd7 {[%clk 0:02:26.2]} 19. Nf2 {[%clk 0:01:59.3]} 19... Rf7 {[%clk 0:02:19.6]}
20. a5 {[%clk 0:01:59.5]} 20... Raf8 {[%clk 0:02:20.5]} 21. Ng2 {[%clk
0:01:55.9]} 21... g5 {[%clk 0:02:12.6]} 22. exf5 {[%clk 0:01:42.1]} 22... Nexf5
{[%clk 0:02:14.5]} 23. Bc1 {[%clk 0:01:39.8]} 23... h6 {[%clk 0:02:09.4]} 24.
Ne4 {[%clk 0:01:40.9]} 24... Nxe4 {[%clk 0:01:50.6]} 25. fxe4 {[%clk 0:01:21.1]}
25... Nh4 {[%clk 0:01:51.8]} 26. Rxf7 {[%clk 0:01:21.6]} 26... Qxf7 {[%clk
0:01:53.5]} 27. Qe2 {[%clk 0:01:22.7]} 27... Nf3+ {[%clk 0:01:47.3]} 28. Kh1
{[%clk 0:01:22.5]} 28... Qh5 {[%clk 0:01:48.9]} 29. Ne1 {[%clk 0:00:55]} 29...
Nxe1 {[%clk 0:01:29.4]} 30. Qxe1 {[%clk 0:00:37.8]} 30... Qf3+ {[%clk
0:01:30.5]} 31. Kg1 {[%clk 0:00:39.1]} 31... Qxd3 {[%clk 0:01:32.4]} 32. axb6
{[%clk 0:00:39.4]} 32... axb6 {[%clk 0:01:33.9]} 33. Ra6 {[%clk 0:00:38.5]}
33... Rf6 {[%clk 0:01:18.6]} 34. Ra8+ {[%clk 0:00:39.6]} 34... Kh7 {[%clk
0:01:19.1]} 35. Re8 {[%clk 0:00:38.4]} 35... Qxc4 {[%clk 0:01:09.4]} 36. Rxe5
{[%clk 0:00:39.4]} 36... Qxb5 {[%clk 0:01:10.6]} 37. Re7 {[%clk 0:00:40.2]}
37... Qc6 {[%clk 0:00:55]} 38. e5 {[%clk 0:00:40.6]} 38... Re6 {[%clk
0:00:56.5]} 39. Rxe6 {[%clk 0:00:27.2]} 39... Qxe6 {[%clk 0:00:58.4]} 40. Qe4+
{[%clk 0:00:28.4]} 40... Kg8 {[%clk 0:00:59.9]} 41. Qa8+ {[%clk 0:00:29.3]}
41... Kf7 {[%clk 0:00:41]} 42. Qb7+ {[%clk 0:00:29.2]} 42... Kg6 {[%clk
0:00:42.5]} 43. Qe4+ {[%clk 0:00:29.8]} 43... Qf5 {[%clk 0:00:35.8]} 44. Qc6+
{[%clk 0:00:30.9]} 44... Kh7 {[%clk 0:00:37.2]} 45. e6 {[%clk 0:00:31.2]} 45...
Qc2 {[%clk 0:00:30.6]} 46. e7 {[%clk 0:00:24.6]} 46... Qxc1+ {[%clk 0:00:27.1]}
47. Kg2 {[%clk 0:00:26]} 47... Qd2+ {[%clk 0:00:23.7]} 48. Kh3 {[%clk
0:00:24.9]} 48... g4+ {[%clk 0:00:22]} 49. Kh4 {[%clk 0:00:21.1]} 49... Qg5#
{[%clk 0:00:23.9]} 0-1

[Event "*** Titled Tuesday Blitz"]
[Site "Chess.com"]
[Date "2018.12.04"]
[Round "10"]
[White "nitpicker"]
[Black "Oligan22"]
[Result "1/2-1/2"]
[WhiteElo "2182"]
[BlackElo "2290"]
[TimeControl "180+2"]
[EndTime "15:23:41 PST"]
[Termination "Game drawn by repetition"]

1. d4 {[%clk 0:03:01.9]} 1... Nf6 {[%clk 0:02:57.9]} 2. c4 {[%clk 0:03:02.1]}
2... e6 {[%clk 0:02:58.3]} 3. g3 {[%clk 0:03:02.4]} 3... d5 {[%clk 0:02:56.2]}
4. Nf3 {[%clk 0:03:02.6]} 4... c6 {[%clk 0:02:57.6]} 5. Qc2 {[%clk 0:03:02.5]}
5... dxc4 {[%clk 0:02:57.2]} 6. Qxc4 {[%clk 0:03:02.5]} 6... b5 {[%clk 0:02:57]}
7. Qc2 {[%clk 0:03:03.2]} 7... Bb7 {[%clk 0:02:55.5]} 8. Nbd2 {[%clk 0:02:56.4]}
8... Nbd7 {[%clk 0:02:54.1]} 9. Nb3 {[%clk 0:02:51.4]} 9... a5 {[%clk
0:02:42.9]} 10. Bg2 {[%clk 0:02:50]} 10... a4 {[%clk 0:02:42.6]} 11. Nc5 {[%clk
0:02:51]} 11... Nxc5 {[%clk 0:02:31.6]} 12. dxc5 {[%clk 0:02:52.9]} 12... Qd5
{[%clk 0:02:25.9]} 13. Be3 {[%clk 0:02:27.4]} 13... Ng4 {[%clk 0:02:22.8]} 14.
Bd4 {[%clk 0:02:10.9]} 14... e5 {[%clk 0:02:13.7]} 15. h3 {[%clk 0:02:12.2]}
15... exd4 {[%clk 0:02:12]} 16. hxg4 {[%clk 0:02:12.4]} 16... Bxc5 {[%clk
0:02:01.1]} 17. Rh5 {[%clk 0:02:05.9]} 17... Bb4+ {[%clk 0:02:01.2]} 18. Kf1
{[%clk 0:02:07.4]} 18... Qd6 {[%clk 0:01:45.9]} 19. Qe4+ {[%clk 0:01:44]} 19...
Kf8 {[%clk 0:01:24.5]} 20. Rd1 {[%clk 0:00:52.1]} 20... Re8 {[%clk 0:01:20]} 21.
Qxd4 {[%clk 0:00:52.2]} 21... Qxd4 {[%clk 0:01:12.9]} 22. Nxd4 {[%clk
0:00:52.8]} 22... g6 {[%clk 0:01:09.6]} 23. Rh4 {[%clk 0:00:34]} 23... Be7
{[%clk 0:00:57.1]} 24. Rh1 {[%clk 0:00:30.7]} 24... Bf6 {[%clk 0:00:57.9]} 25.
b3 {[%clk 0:00:21.2]} 25... axb3 {[%clk 0:00:57.2]} 26. Nxb3 {[%clk 0:00:19]}
26... Kg7 {[%clk 0:00:51.9]} 27. Na5 {[%clk 0:00:16.1]} 27... Re7 {[%clk
0:00:45.2]} 28. Nxb7 {[%clk 0:00:12.8]} 28... Rxb7 {[%clk 0:00:47.1]} 29. Bxc6
{[%clk 0:00:13.2]} 29... Ra7 {[%clk 0:00:47.3]} 30. Bxb5 {[%clk 0:00:06.3]}
30... Rxa2 {[%clk 0:00:48]} 31. Rd7 {[%clk 0:00:05.4]} 31... Rd8 {[%clk
0:00:39.5]} 32. Rxf7+ {[%clk 0:00:03.2]} 32... Kxf7 {[%clk 0:00:39.7]} 33. Bc4+
{[%clk 0:00:04.3]} 33... Kg7 {[%clk 0:00:39.9]} 34. Bxa2 {[%clk 0:00:05.7]}
34... Rd2 {[%clk 0:00:31.2]} 35. Bc4 {[%clk 0:00:05.9]} 35... Rd4 {[%clk
0:00:32.3]} 36. Bd3 {[%clk 0:00:05.9]} 36... Rxg4 {[%clk 0:00:33.1]} 37. Kg2
{[%clk 0:00:07.2]} 37... h5 {[%clk 0:00:31.1]} 38. Rb1 {[%clk 0:00:07.8]} 38...
h4 {[%clk 0:00:31.3]} 39. Kf3 {[%clk 0:00:09.1]} 39... Ra4 {[%clk 0:00:25.3]}
40. gxh4 {[%clk 0:00:09.2]} 40... Bxh4 {[%clk 0:00:23.9]} 41. Rb6 {[%clk
0:00:08.6]} 41... g5 {[%clk 0:00:18.9]} 42. Rg6+ {[%clk 0:00:08.9]} 42... Kf7
{[%clk 0:00:19.6]} 43. Rh6 {[%clk 0:00:09.5]} 43... Rf4+ {[%clk 0:00:20.1]} 44.
Ke3 {[%clk 0:00:06.7]} 44... Bxf2+ {[%clk 0:00:20.7]} 45. Kd2 {[%clk 0:00:07.8]}
45... Bc5 {[%clk 0:00:19.5]} 46. Rh7+ {[%clk 0:00:07.5]} 46... Kf6 {[%clk
0:00:20.3]} 47. Rh6+ {[%clk 0:00:08.8]} 47... Kf7 {[%clk 0:00:20.3]} 48. Rh7+
{[%clk 0:00:09.8]} 48... Kf6 {[%clk 0:00:21.8]} 49. Rh6+ {[%clk 0:00:10.1]}
49... Kf7 {[%clk 0:00:23.3]} 1/2-1/2

[Event "*** Titled Tuesday Blitz"]
[Site "Chess.com"]
[Date "2018.12.04"]
[Round "10"]
[White "FMJoseHerrera"]
[Black "Berardino"]
[Result "0-1"]
[WhiteElo "2560"]
[BlackElo "2427"]
[TimeControl "180+2"]
[EndTime "15:23:44 PST"]
[Termination "Berardino won by resignation"]

1. Nf3 {[%clk 0:03:01.9]} 1... Nf6 {[%clk 0:03:00.4]} 2. g3 {[%clk 0:03:02.6]}
2... g6 {[%clk 0:03:02]} 3. Bg2 {[%clk 0:03:03.3]} 3... Bg7 {[%clk 0:03:03.9]}
4. d4 {[%clk 0:03:04.5]} 4... O-O {[%clk 0:03:05.8]} 5. Nc3 {[%clk 0:03:05.3]}
5... d5 {[%clk 0:03:05]} 6. h4 {[%clk 0:03:06.4]} 6... h5 {[%clk 0:03:00.5]} 7.
Bg5 {[%clk 0:03:06.6]} 7... Bf5 {[%clk 0:02:55]} 8. Qc1 {[%clk 0:03:07.4]} 8...
Ne4 {[%clk 0:02:51.9]} 9. Bh6 {[%clk 0:02:59.4]} 9... Nd7 {[%clk 0:02:50.4]} 10.
Bxg7 {[%clk 0:02:57.1]} 10... Kxg7 {[%clk 0:02:52.3]} 11. Nxd5 {[%clk
0:02:58.7]} 11... c5 {[%clk 0:02:43.4]} 12. Ne3 {[%clk 0:02:57]} 12... Ndf6
{[%clk 0:02:33.8]} 13. Nxf5+ {[%clk 0:02:55.3]} 13... gxf5 {[%clk 0:02:35.7]}
14. dxc5 {[%clk 0:02:53.5]} 14... Qa5+ {[%clk 0:02:32.8]} 15. c3 {[%clk
0:02:53.5]} 15... Qxc5 {[%clk 0:02:31.7]} 16. O-O {[%clk 0:02:54.6]} 16... Ng4
{[%clk 0:02:17.3]} 17. Nd4 {[%clk 0:02:49.9]} 17... e6 {[%clk 0:01:43.6]} 18. f3
{[%clk 0:02:41]} 18... Nxg3 {[%clk 0:01:42.3]} 19. Qg5+ {[%clk 0:02:41.8]} 19...
Kh7 {[%clk 0:01:43.5]} 20. fxg4 {[%clk 0:02:40.4]} 20... Rg8 {[%clk 0:01:44.2]}
21. Qf6 {[%clk 0:02:37.4]} 21... Rxg4 {[%clk 0:01:40.2]} 22. e3 {[%clk
0:02:23.6]} 22... Rag8 {[%clk 0:01:38.5]} 23. Rf2 {[%clk 0:02:17.3]} 23... R8g7
{[%clk 0:01:28.3]} 24. Kh2 {[%clk 0:02:07.8]} 24... Qc7 {[%clk 0:01:18.3]} 25.
Nb5 {[%clk 0:00:29.9]} 25... Nf1+ {[%clk 0:00:55.6]} 26. Kg1 {[%clk 0:00:30.1]}
26... Rxg2+ {[%clk 0:00:52.5]} 27. Rxg2 {[%clk 0:00:25.9]} 27... Qh2+ {[%clk
0:00:51.7]} 28. Kxf1 {[%clk 0:00:23]} 28... Qxg2+ {[%clk 0:00:52.8]} 29. Ke1
{[%clk 0:00:24.4]} 29... Qg1+ {[%clk 0:00:31]} 30. Kd2 {[%clk 0:00:23.5]} 30...
Qxa1 {[%clk 0:00:31.5]} 31. c4 {[%clk 0:00:18.9]} 31... Rg2+ {[%clk 0:00:28.2]}
32. Kd3 {[%clk 0:00:20]} 32... Qb1+ {[%clk 0:00:26]} 33. Kd4 {[%clk 0:00:10.6]}
33... Qxb2+ {[%clk 0:00:19.6]} 34. Nc3 {[%clk 0:00:11.3]} 34... Qb6+ {[%clk
0:00:19.1]} 35. c5 {[%clk 0:00:08.2]} 35... Qc7 {[%clk 0:00:18]} 36. Kc4 {[%clk
0:00:06]} 36... Rg4+ {[%clk 0:00:16.1]} 37. Kb3 {[%clk 0:00:06.7]} 37... b6
{[%clk 0:00:17.4]} 38. c6 {[%clk 0:00:07.1]} 38... Rg7 {[%clk 0:00:17.7]} 39.
Qd4 {[%clk 0:00:03.4]} 39... Qxc6 {[%clk 0:00:18.5]} 40. a4 {[%clk 0:00:05.3]}
40... a6 {[%clk 0:00:19.4]} 41. Qf4 {[%clk 0:00:06.1]} 41... b5 {[%clk
0:00:19.7]} 42. axb5 {[%clk 0:00:07]} 42... axb5 {[%clk 0:00:21]} 43. Qf3 {[%clk
0:00:08.6]} 43... Qc4+ {[%clk 0:00:22.2]} 44. Kb2 {[%clk 0:00:09.5]} 44... Rg4
{[%clk 0:00:22.3]} 45. e4 {[%clk 0:00:10.1]} 45... b4 {[%clk 0:00:20.9]} 46.
exf5 {[%clk 0:00:08.8]} 46... Qxc3+ {[%clk 0:00:21.3]} 47. Qxc3 {[%clk
0:00:10.1]} 47... bxc3+ {[%clk 0:00:23.2]} 48. Kb3 {[%clk 0:00:12]} 48... exf5
{[%clk 0:00:24.2]} 0-1